fUSD/lending_fUSD_20260506
["ID","MTS","AMOUNT","RATE_DAILY","PERIOD"]
[421651358,1778025038000,-3408.99,0.00013634,2]
[421651361,1778025038000,-45179.24775152,0.00015,2]
[421651360,1778025038000,-6273.72863752,0.000147,2]
[421651359,1778025038000,-151.0,0.00013949,2]
[421651362,1778025038000,-4802.52665548,0.00015,2]
[421651365,1778025038000,-378.99670429,0.00015,2]
[421651364,1778025038000,-1833.47757979,0.00015,2]
[421651366,1778025038000,-559.81563867,0.00015,2]
[421651363,1778025038000,-1505.0,0.00015,2]
[421651457,1778025040000,-878362.89690352,0.00015,2]
[421651459,1778025040000,-475480.45816177,0.00015,2]
[421651458,1778025040000,-157.0,0.00015,2]
[421651461,1778025040000,-276.04367735,0.00015,2]
[421651462,1778025040000,-0.00043546,0.000147,2]
[421651460,1778025040000,-92247.88717962,0.00015,2]
[421651471,1778025043000,-20231.18319694,0.00015,2]
[421651473,1778025043000,-2692.90364399,0.00015,2]
[421651472,1778025043000,-4182.4856132,0.000147,2]
[421651470,1778025043000,-20.75000584,0.00015,2]
[421651478,1778025045000,-284724.40259169,0.00015,2]
[421651483,1778025046000,-7084.19999994,0.00015,2]
[421651481,1778025046000,-274975.45250692,0.00015,2]
[421651482,1778025046000,-22404.8928481,0.00015,2]
[421651485,1778025046000,-7561.97254673,0.00015,2]
[421651484,1778025046000,-9755.98097774,0.00015,2]
[421651840,1778025063000,504.19,7.922e-05,2]
[421651839,1778025063000,504.19,7.526e-05,2]
[421651841,1778025064000,504.19,8.318e-05,2]
[421651842,1778025066000,-410.15043546,8.714e-05,2]
[421651843,1778025197000,151.44,0.00030137,120]
[421651844,1778025219000,152.0,0.00014986,30]
[421651845,1778025521000,152.0,0.00014989,30]
[421651847,1778025655000,152.0,0.0001499,30]
[421651865,1778025888000,-5679.32646659,0.00010146,2]
[421651852,1778025888000,-94.03956454,8.714e-05,2]
[421651851,1778025888000,-250.0,8.714e-05,2]
[421651853,1778025888000,-250.0,8.889e-05,2]
[421651850,1778025888000,-263.0,8.714e-05,2]
[421651856,1778025888000,-250.0,9.585e-05,2]
[421651855,1778025888000,-504.19,9.507e-05,2]
[421651854,1778025888000,-504.19,9.11e-05,2]
[421651857,1778025888000,-300.45549685,9.585e-05,2]
[421651860,1778025888000,-166.33,0.00010107,2]
[421651859,1778025888000,-184.27847202,0.0001,2]
[421651862,1778025888000,-300.0,0.00010145,2]
[421651861,1778025888000,-300.0,0.00010145,2]
[421651863,1778025888000,-150.0,0.00010145,2]
[421651858,1778025888000,-504.19,9.903e-05,2]
[421651864,1778025888000,-300.0,0.00010145,2]
[421651867,1778025901000,-1200.0,0.00010145,2]
[421651868,1778025901000,-8500.0,0.00010146,2]
[421651866,1778025901000,-300.0,0.00010145,2]
[421651870,1778025913000,-10000.0,0.00010146,2]
[421651869,1778025913000,152.0,0.0001499,30]
[421651871,1778025923000,-10000.0,0.00010146,2]
[421651873,1778025936000,-10000.0,0.00010146,2]
[421651874,1778025938000,1184409.0,0.00030136,120]
[421651875,1778025950000,-10000.0,0.00010146,2]
[421651880,1778025962000,-9074.99927491,0.00010146,2]
[421651879,1778025962000,-281.0,0.00010146,2]
[421651878,1778025962000,-150.0,0.00010145,2]
[421651877,1778025962000,-300.0,0.00010145,2]
[421651876,1778025962000,-194.00072509,0.00010046,2]
[421651881,1778025974000,-10000.0,0.00010146,2]
[421651882,1778025984000,-10000.0,0.00010146,2]
[421651884,1778025995000,-9378.73715877,0.00010146,2]
[421651885,1778025995000,-621.26284123,0.00010146,2]
[421651886,1778026005000,-696.96715877,0.00010146,2]
[421651887,1778026006000,-150.99,0.00010146,2]
[421651888,1778026006000,-9152.04284123,0.00010146,2]
[421651894,1778026017000,-6501.51284123,0.00010299,2]
[421651892,1778026017000,-999.99,0.00010298,2]
[421651893,1778026017000,-504.19,0.00010299,2]
[421651891,1778026017000,-250.0,0.00010222,2]
[421651890,1778026017000,-896.36,0.00010146,2]
[421651889,1778026017000,-847.94715877,0.00010146,2]
[421651895,1778026029000,-300.0,0.00010298,2]
[421651898,1778026029000,-5918.52284123,0.00010299,2]
[421651896,1778026029000,-283.0,0.00010298,2]
[421651897,1778026029000,-3498.47715877,0.00010299,2]
[421651900,1778026047000,637.28,6.588e-05,2]
[421651899,1778026047000,637.28,6.258e-05,2]
[421651901,1778026047000,637.28,6.917e-05,2]
[421651905,1778026048000,637.28,8.235e-05,2]
[421651904,1778026048000,637.28,7.905e-05,2]
[421651903,1778026048000,637.28,7.576e-05,2]
[421651902,1778026048000,637.28,7.247e-05,2]
[421651907,1778026056000,-637.28,8.564e-05,2]
[421651908,1778026056000,-504.89720313,8.894e-05,2]
[421651909,1778026066000,-132.38279687,8.894e-05,2]
[421651911,1778026066000,-637.28,9.552e-05,2]
[421651913,1778026066000,-637.28,0.00010211,2]
[421651915,1778026066000,-1491.9358213,0.00010406,2]
[421651910,1778026066000,-637.28,9.223e-05,2]
[421651912,1778026066000,-637.28,9.882e-05,2]
[421651916,1778026066000,-250.0,0.00010506,2]
[421651917,1778026066000,-637.28,0.00010541,2]
[421651918,1778026066000,-499.99,0.00010695,2]
[421651919,1778026066000,-357.82422306,0.00010695,2]
[421651914,1778026066000,-4081.46715877,0.00010299,2]
[421651920,1778026076000,-146.36577694,0.00010695,2]
[421651923,1778026076000,-255.0,0.0001115,2]
[421651924,1778026076000,-1680.0,0.0001116,2]
[421651922,1778026076000,-504.19,0.00011091,2]
[421651921,1778026076000,-637.28,0.0001087,2]
[421651926,1778026076000,-301.21727862,0.00011161,2]
[421651927,1778026076000,-250.0,0.00011161,2]
[421651929,1778026076000,-420.0,0.00011324,2]
[421651928,1778026076000,-637.28,0.00011199,2]
[421651930,1778026076000,-168.66694444,0.00011328,2]
[421651925,1778026076000,-5000.0,0.00011161,2]
[421651932,1778026088000,-250.0,0.00011407,2]
[421651931,1778026088000,-81.33305556,0.00011328,2]
[421651934,1778026088000,-637.28,0.00011529,2]
[421651933,1778026088000,-504.19,0.00011487,2]
[421651935,1778026088000,-150.0,0.00011764,2]
[421651936,1778026088000,-492.21907655,0.00011852,2]
[421651938,1778026088000,-504.19,0.00011883,2]
[421651937,1778026088000,-637.28,0.00011858,2]
[421651939,1778026088000,-6112.62837027,0.00011893,2]
[421651940,1778026088000,-300.0,0.00012153,2]
[421651941,1778026088000,-330.87949762,0.00012154,2]
[421651942,1778026098000,-308.0,0.00012154,2]
[421651945,1778026098000,-433.0,0.00012256,2]
[421651944,1778026098000,-637.28,0.00012188,2]
[421651946,1778026098000,-2351.0,0.00012276,2]
[421651947,1778026098000,-504.19,0.00012279,2]
[421651943,1778026098000,-1158.29050238,0.00012154,2]
[421651948,1778026099000,-500.0,0.00012378,2]
[421651949,1778026099000,-4108.23949762,0.00012405,2]
[421651950,1778026110000,-10000.0,0.00012405,2]
[421651953,1778026122000,-758.12,0.00012409,2]
[421651952,1778026122000,-2892.9604652,0.00012405,2]
[421651954,1778026122000,-874.09,0.00012432,2]
[421651955,1778026122000,-250.0,0.00012461,2]
[421651958,1778026122000,-2000.0,0.00012526,2]
[421651957,1778026122000,-637.28,0.00012517,2]
[421651960,1778026122000,-504.19,0.00012675,2]
[421651959,1778026122000,-294.9,0.00012572,2]
[421651961,1778026122000,-1288.4595348,0.00012732,2]
[421651956,1778026122000,-500.0,0.00012461,2]
[421651964,1778026135000,-2910.37969054,0.00012974,2]
[421651963,1778026135000,-294.9,0.00012886,2]
[421651962,1778026135000,-257.63655322,0.00012732,2]
[421651972,1778026146000,-300.0,0.00013487,2]
[421651965,1778026146000,-1004.85002258,0.00013002,2]
[421651966,1778026146000,-150.0,0.00013037,2]
[421651968,1778026146000,-294.9,0.000132,2]
[421651967,1778026146000,-504.19,0.00013072,2]
[421651971,1778026146000,-300.0,0.00013487,2]
[421651970,1778026146000,-504.19,0.00013468,2]
[421651973,1778026146000,-150.0,0.00013488,2]
[421651978,1778026146000,-150.41189386,0.00013488,2]
[421651975,1778026146000,-150.0,0.00013488,2]
[421651969,1778026146000,-166.89,0.00013206,2]
[421651981,1778026146000,224.30294412,0.0001302,2]
[421651980,1778026146000,-150.0,0.00013488,2]
[421651976,1778026146000,-150.0,0.00013488,2]
[421651977,1778026146000,-150.0,0.00013488,2]
[421651974,1778026146000,-150.0,0.00013488,2]
[421651979,1778026146000,-150.0,0.00013488,2]
[421651983,1778026191000,152.0,0.00012728,7]
[421651984,1778026192000,152.0,0.00012728,7]
[421652036,1778026232000,-500.0,0.00014899,2]
[421652027,1778026232000,-5000.0,0.00014895,2]
[421652028,1778026232000,-556.44888684,0.00014896,2]
[421652026,1778026232000,-166.89,0.00014856,2]
[421652017,1778026232000,-1221.0,0.00014774,2]
[421652021,1778026232000,-5250.31208252,0.000148,2]
[421652019,1778026232000,-150.0,0.00014799,2]
[421652018,1778026232000,-157.00912295,0.00014799,2]
[421652023,1778026232000,-2000.0,0.0001485,2]
[421652020,1778026232000,-17479.87888477,0.000148,2]
[421652024,1778026232000,-2000.0,0.0001485,2]
[421652040,1778026232000,-500.0,0.00014899,2]
[421652025,1778026232000,-5719.9884,0.00014854,2]
[421652039,1778026232000,-500.0,0.00014899,2]
[421652038,1778026232000,-204.07090451,0.00014899,2]
[421652041,1778026232000,-484.52036369,0.00014899,2]
[421652029,1778026232000,-500.0,0.00014899,2]
[421652042,1778026232000,-500.0,0.00014899,2]
[421652032,1778026232000,-500.0,0.00014899,2]
[421652043,1778026232000,-202.28517908,0.00014899,2]
[421652031,1778026232000,-500.0,0.00014899,2]
[421652034,1778026232000,-500.0,0.00014899,2]
[421652035,1778026232000,-500.0,0.00014899,2]
[421652022,1778026232000,-2000.0,0.0001485,2]
[421652013,1778026232000,-300.0,0.00014302,2]
[421652015,1778026232000,-504.19,0.00014656,2]
[421652016,1778026232000,-2500.0,0.000147,2]
[421651989,1778026232000,-294.9,0.00013515,2]
[421651990,1778026232000,-415.7831,0.00013599,2]
[421651991,1778026232000,-2361.31390677,0.00013699,2]
[421651994,1778026232000,-150.0,0.00013848,2]
[421651992,1778026232000,-138.68609323,0.00013699,2]
[421651993,1778026232000,-294.9,0.00013829,2]
[421651995,1778026232000,-504.19,0.00013864,2]
[421651997,1778026232000,-1200.0,0.00014091,2]
[421651996,1778026232000,-250.0,0.00014,2]
[421651998,1778026232000,-470.39992717,0.00014092,2]
[421651999,1778026232000,-1466.46,0.00014092,2]
[421652002,1778026232000,-150.99,0.00014121,2]
[421652001,1778026232000,-2549.38303694,0.00014121,2]
[421652007,1778026232000,-999.99,0.0001426,2]
[421652000,1778026232000,-63.14007283,0.00014092,2]
[421652003,1778026232000,-7664.93,0.00014121,2]
[421652006,1778026232000,-504.19,0.0001426,2]
[421652005,1778026232000,-166.56,0.00014229,2]
[421652004,1778026232000,-9109.99,0.00014121,2]
[421652009,1778026232000,-300.0,0.00014302,2]
[421652011,1778026232000,-300.0,0.00014302,2]
[421652012,1778026232000,-300.0,0.00014302,2]
[421652014,1778026232000,-250.0,0.00014302,2]
[421652010,1778026232000,-300.0,0.00014302,2]
[421652008,1778026232000,-9999.99,0.0001426,2]
[421652037,1778026232000,-500.0,0.00014899,2]
[421652044,1778026232000,-176.68767688,0.000149,2]
[421652072,1778026232000,-151.0,0.00014996,2]
[421652075,1778026232000,-276.917602,0.00014996,2]
[421652073,1778026232000,-151.0,0.00014996,2]
[421652074,1778026232000,-151.0,0.00014996,2]
[421652078,1778026232000,-276.917602,0.00014996,2]
[421652089,1778026232000,-151.0,0.00014996,2]
[421652079,1778026232000,-151.0,0.00014996,2]
[421652080,1778026232000,-151.0,0.00014996,2]
[421652090,1778026232000,-167.0,0.00014996,2]
[421652077,1778026232000,-276.917602,0.00014996,2]
[421652071,1778026232000,-151.0,0.00014996,2]
[421652081,1778026232000,-326.34062,0.00014996,2]
[421652083,1778026232000,-326.34062,0.00014996,2]
[421652082,1778026232000,-326.34062,0.00014996,2]
[421652086,1778026232000,-359.322421,0.00014996,2]
[421652085,1778026232000,-359.322421,0.00014996,2]
[421652087,1778026232000,-359.322421,0.00014996,2]
[421652091,1778026232000,-151.0,0.00014996,2]
[421652092,1778026232000,-805.0,0.00015,5]
[421652093,1778026232000,-52701.50200572,0.00015,2]
[421652094,1778026232000,-38480.80542757,0.00015,2]
[421652095,1778026232000,-98811.98962765,0.00015,2]
[421652084,1778026232000,-326.34062,0.00014996,2]
[421652076,1778026232000,-276.917602,0.00014996,2]
[421652088,1778026232000,-359.322421,0.00014996,2]
[421652067,1778026232000,-1932.4927714,0.00014995,2]
[421652053,1778026232000,-500.0,0.00014973,2]
[421652055,1778026232000,-500.0,0.00014973,2]
[421652054,1778026232000,-280.51458286,0.00014973,2]
[421652047,1778026232000,-500.0,0.000149,2]
[421652068,1778026232000,-2596.4459965,0.00014995,2]
[421652048,1778026232000,-478.32658996,0.000149,2]
[421652050,1778026232000,-298.2360421,0.000149,2]
[421652051,1778026232000,-179.41541673,0.000149,2]
[421652049,1778026232000,-4982.0079555,0.000149,2]
[421652052,1778026232000,-1556.4677342,0.000149,2]
[421652057,1778026232000,-500.0,0.00014973,2]
[421652056,1778026232000,-500.0,0.00014973,2]
[421652046,1778026232000,-422218.2414,0.000149,2]
[421652058,1778026232000,-500.0,0.00014973,2]
[421652060,1778026232000,-150.0,0.00014986,2]
[421652070,1778026232000,-151.0,0.00014996,2]
[421652069,1778026232000,-123596.8538442,0.00014995,2]
[421652066,1778026232000,-7354.0207718,0.00014995,2]
[421652065,1778026232000,-644.0,0.00014995,5]
[421652045,1778026232000,-315654.8577,0.000149,2]
[421652059,1778026232000,-197.43681002,0.00014986,2]
[421652062,1778026232000,-150.0,0.00014986,2]
[421652063,1778026232000,-242.60053845,0.00014986,2]
[421652064,1778026232000,-150.0,0.00014986,2]
[421652061,1778026232000,-150.0,0.00014986,2]
[421652097,1778026233000,-1254.41808677,0.00015,2]
[421652096,1778026233000,-85271.76505116,0.00015,2]
[421652098,1778026233000,-64580.60569269,0.00015,2]
[421652100,1778026233000,-5868.41005784,0.00015,2]
[421652099,1778026233000,-552.3873477,0.00015,2]
[421652105,1778026238000,-380.52932165,0.00015,2]
[421652104,1778026238000,-405974.13792933,0.00015,2]
[421652137,1778026240000,-503.44057045,0.00015,2]
[421652136,1778026240000,-276.58678457,0.00015,2]
[421652162,1778026243000,-59663.0926109,0.00015,2]
[421652160,1778026243000,-5130.38429849,0.00015,2]
[421652161,1778026243000,-588.89997142,0.00015,2]
[421652159,1778026243000,-3998.46347387,0.000148,2]
[421652158,1778026243000,-1001.53652613,0.000148,2]
[421652167,1778026246000,-931.5460343,0.00015,2]
[421652168,1778026246000,-8099.6,0.00015,2]
[421652170,1778026246000,-3606.579992,0.00015,2]
[421652171,1778026246000,-2337.35871591,0.00015,2]
[421652169,1778026246000,-5412.1727862,0.00015,2]
[421652175,1778026311000,160.97501448,0.00029888,120]
[421652193,1778026481000,853571.3,0.00030136,120]
[421652196,1778026688000,12646.168708,7.945e-05,2]
[421652199,1778026714000,-310.97843141,0.00011,2]
[421652198,1778026714000,-303.8053345,0.0001,2]
[421652200,1778026714000,-245.70462933,0.00012731,2]
[421652201,1778026714000,-2000.0,0.00013951,2]
[421652202,1778026714000,-300.0,0.00014004,2]
[421652203,1778026714000,-993.04,0.0001401,2]
[421652204,1778026714000,-300.0,0.00014161,2]
[421652206,1778026714000,-300.0,0.00014161,2]
[421652205,1778026714000,-300.0,0.00014161,2]
[421652207,1778026714000,-20076.95,0.00014162,2]
[421652209,1778026714000,-1181.13,0.00014497,2]
[421652208,1778026714000,-1200.0,0.00014496,2]
[421652212,1778026714000,-1133.345982,0.00014599,2]
[421652211,1778026714000,-1484.7074,0.000145,2]
[421652213,1778026714000,-345.0,0.00014599,2]
[421652214,1778026714000,-411.56343384,0.00014599,2]
[421652217,1778026714000,-3369.994,0.000147,2]
[421652215,1778026714000,-242050.7521,0.000146,2]
[421652216,1778026714000,-15731.89099632,0.000146,2]
[421652218,1778026714000,-360.749,0.000147,2]
[421652220,1778026714000,-5000.0,0.000148,2]
[421652219,1778026714000,-380.5293,0.0001475,2]
[421652221,1778026714000,-2664.5201143,0.000148,2]
[421652222,1778026714000,-1025.00111,0.0001485,2]
[421652210,1778026714000,-3069.5,0.00014497,2]
[421652223,1778026715000,-4725.28087425,0.0001485,2]
[421652224,1778026715000,-318.8843933,0.000149,2]
[421652225,1778026715000,-500.0,0.00014945,2]
[421652226,1778026715000,-457.70455762,0.00014945,2]
[421652227,1778026715000,-192.44604222,0.00014945,2]
[421652230,1778026715000,-456476.30549706,0.00014946,2]
[421652229,1778026715000,-500.0,0.00014945,2]
[421652228,1778026715000,-290.21680385,0.00014945,2]
[421652232,1778026802000,284.75,7.412e-05,2]
[421652231,1778026802000,284.75,7.042e-05,2]
[421652234,1778026803000,284.75,8.153e-05,2]
[421652233,1778026803000,284.75,7.783e-05,2]
[421652243,1778026804000,-188.33976483,0.00013625,2]
[421652242,1778026804000,-536.0,0.00013507,2]
[421652241,1778026804000,-250.0,0.00011753,2]
[421652238,1778026804000,-255.10856073,0.0001,2]
[421652239,1778026804000,-279.0,0.0001,2]
[421652240,1778026804000,-250.0,0.00011,2]
[421652236,1778026804000,-284.75,8.895e-05,2]
[421652235,1778026804000,-284.75,8.524e-05,2]
[421652237,1778026804000,-284.75,9.265e-05,2]
[421652247,1778026804000,-320.44950894,0.00014599,2]
[421652245,1778026804000,-976.06378488,0.00014599,2]
[421652246,1778026804000,-253.8945699,0.00014599,2]
[421652251,1778026804000,-191.40171335,0.00014812,2]
[421652249,1778026804000,-633.12665658,0.00014599,2]
[421652248,1778026804000,-638.94950751,0.00014599,2]
[421652250,1778026804000,-222.092225,0.00014772,2]
[421652252,1778026804000,-300.0,0.00014845,2]
[421652253,1778026804000,-1200.0,0.00014845,2]
[421652254,1778026804000,-300.0,0.00014845,2]
[421652255,1778026804000,-1606.74370828,0.00014846,2]
[421652244,1778026804000,-744.58,0.00014162,2]
[421652258,1778026806000,-284.75,0.00010377,2]
[421652256,1778026806000,-284.75,9.636e-05,2]
[421652259,1778026806000,-250.0,0.000105,2]
[421652260,1778026806000,-284.75,0.00010748,2]
[421652257,1778026806000,-284.75,0.00010006,2]
[421652262,1778026806000,-284.75,0.00011118,2]
[421652265,1778026806000,-284.75,0.0001223,2]
[421652261,1778026806000,-250.0,0.00011,2]
[421652263,1778026806000,-284.75,0.00011489,2]
[421652264,1778026806000,-284.75,0.00011859,2]
[421652268,1778026807000,-284.75,0.00013342,2]
[421652267,1778026807000,-284.75,0.00012971,2]
[421652266,1778026807000,-284.75,0.00012601,2]
[421652270,1778026807000,-6083.0,0.000145,2]
[421652269,1778026807000,-284.75,0.00013712,2]
[421652272,1778026808000,-9715.25,0.000145,2]
[421652271,1778026808000,-284.75,0.00014083,2]
[421652273,1778026809000,-6251.9922,0.000145,2]
[421652274,1778026809000,-3450.67810031,0.000147,2]
[421652275,1778026809000,-297.32969969,0.00014846,2]
[421652281,1778026811000,-72.66574513,0.00014925,2]
[421652280,1778026811000,-191.40171335,0.00014925,2]
[421652279,1778026811000,-212.58959554,0.000149,2]
[421652278,1778026811000,-6236.0146406,0.00014886,2]
[421652277,1778026811000,-191.40171335,0.00014871,2]
[421652276,1778026811000,-3095.92659203,0.00014846,2]
[421652282,1778026816000,-1158.63916517,0.00014599,2]
[421652284,1778026816000,-4425.38342315,0.00014599,2]
[421652285,1778026816000,-1841.45562476,0.000147,2]
[421652283,1778026816000,-2574.52178692,0.00014599,2]
[421652289,1778026817000,-7386.54503802,0.00014946,2]
[421652287,1778026817000,-118.73596822,0.00014925,2]
[421652288,1778026817000,-205.33812527,0.00014945,2]
[421652286,1778026817000,-2289.38086849,0.000147,2]
[421652290,1778026818000,-10000.0,0.00014946,2]
[421652291,1778026819000,-10000.0,0.00014946,2]
[421652292,1778026820000,-10000.0,0.00014946,2]
[421652294,1778026822000,-7421.95460185,0.00014946,2]
[421652293,1778026822000,-2578.04539815,0.000147,2]
[421652296,1778026823000,-8313.36647471,0.00014946,2]
[421652295,1778026823000,-1686.63352529,0.000147,2]
[421652297,1778026824000,-10000.0,0.00014946,2]
[421652298,1778026825000,-10000.0,0.00014946,2]
[421652299,1778026828000,-152.0,0.00012728,7]
[421652300,1778026828000,-9848.0,0.00014946,2]
[421652302,1778026829000,-10000.0,0.00014946,2]
[421652301,1778026829000,-10000.0,0.00014946,2]
[421652303,1778026831000,-10000.0,0.00014946,2]
[421652353,1778026843000,-265.07388414,0.000147,2]
[421652354,1778026843000,-9734.92611586,0.00014946,2]
[421652355,1778026844000,-10000.0,0.00014946,2]
[421652356,1778026845000,-10000.0,0.00014946,2]
[421652357,1778026851000,-176.71592276,0.000147,2]
[421652358,1778026851000,-9823.28407724,0.00014946,2]
[421652360,1778026852000,-9827.99644477,0.00014946,2]
[421652359,1778026852000,-172.00355523,0.00014858,2]
[421652361,1778026854000,230.06,0.00022,30]
[421652363,1778026858000,1210.34,0.00022,30]
[421652362,1778026858000,1210.34,0.0002,30]
[421652364,1778026859000,1210.34,0.00024,60]
[421652368,1778026902000,-542.17,0.000145,2]
[421652365,1778026902000,-190.17,0.00013608,2]
[421652366,1778026902000,-292.11,0.00013608,2]
[421652367,1778026902000,-2500.0,0.000145,2]
[421652369,1778026958000,197.19,0.00022,30]
[421652372,1778026962000,907.76,0.00024,60]
[421652371,1778026962000,907.76,0.00022,30]
[421652370,1778026962000,907.76,0.0002,30]
[421652375,1778027046000,276.99,0.00030137,120]
[421652377,1778027062000,169.02,0.00022,30]
[421652378,1778027066000,680.82,0.0002,30]
[421652380,1778027067000,680.82,0.00024,60]
[421652379,1778027067000,680.82,0.00022,30]
[421652383,1778027172000,510.61,0.00024,60]
[421652382,1778027172000,510.61,0.00022,30]
[421652381,1778027172000,510.61,0.0002,30]
[421652388,1778027218000,-150.0,0.00013488,2]
[421652386,1778027218000,-150.0,0.00013488,2]
[421652387,1778027218000,-150.0,0.00013488,2]
[421652389,1778027218000,-150.0,0.00013488,2]
[421652390,1778027218000,-150.0,0.00013488,2]
[421652391,1778027218000,-1413.55442618,0.00013959,2]
[421652385,1778027218000,-150.0,0.00013488,2]
[421652393,1778027281000,382.96,0.00022,30]
[421652392,1778027281000,382.96,0.0002,30]
[421652394,1778027282000,382.96,0.00024,60]
[421652396,1778027368000,-2552.36504526,0.000114,2]
[421652395,1778027368000,-583.77426698,0.00011,2]
[421652397,1778027368000,-5424.12738526,0.00013,2]
[421652401,1778027388000,287.22,0.00022,30]
[421652400,1778027388000,287.22,0.0002,30]
[421652402,1778027389000,287.22,0.00024,60]
[421652403,1778027402000,487.64573422,0.00012,2]
[421652404,1778027428000,454.5534,0.0001,2]
[421652415,1778027432000,-196.6939249,0.00011999,2]
[421652411,1778027432000,-486.04178734,0.0001,2]
[421652412,1778027432000,-188.92640353,0.00011999,2]
[421652413,1778027432000,-500.0,0.00011999,2]
[421652417,1778027432000,-469.61377979,0.00011999,2]
[421652414,1778027432000,-500.0,0.00011999,2]
[421652419,1778027432000,-5529.0,0.00012,2]
[421652418,1778027432000,-7682.12191666,0.00012,2]
[421652421,1778027432000,-2234.838485,0.00012,2]
[421652423,1778027432000,-8887.50596782,0.00012,2]
[421652422,1778027432000,-667516.91638254,0.00012,2]
[421652416,1778027432000,-328.41172457,0.00011999,2]
[421652446,1778027433000,-150.99,0.00014031,2]
[421652434,1778027433000,-300.0,0.00013999,2]
[421652432,1778027433000,-1200.0,0.00013999,2]
[421652436,1778027433000,-300.0,0.00013999,2]
[421652448,1778027433000,-500.0,0.00014131,2]
[421652429,1778027433000,-4359.25557382,0.00013959,2]
[421652444,1778027433000,-305.29,0.00014031,2]
[421652425,1778027433000,-2029.18592357,0.000126,2]
[421652440,1778027433000,-250.0,0.00014,2]
[421652430,1778027433000,-500.0,0.00013993,2]
[421652428,1778027433000,-305.29,0.00013689,2]
[421652426,1778027433000,-242.7114738,0.00013,2]
[421652424,1778027433000,-45921.68507368,0.00012,2]
[421652427,1778027433000,-150.0,0.00013549,2]
[421652437,1778027433000,-300.0,0.00013999,2]
[421652442,1778027433000,-8939.32591713,0.00014,2]
[421652456,1778027433000,-4327.96,0.00014135,2]
[421652450,1778027433000,-189.0,0.00014131,2]
[421652458,1778027433000,-999.98,0.00014135,2]
[421652476,1778027433000,-464.29087844,0.00014397,2]
[421652454,1778027433000,-200.0,0.00014135,2]
[421652475,1778027433000,-1009.52478158,0.00014397,2]
[421652473,1778027433000,-6592.41570278,0.00014373,2]
[421652472,1778027433000,-3796.14558579,0.00014373,2]
[421652471,1778027433000,-3469.71257574,0.00014373,2]
[421652466,1778027433000,-9573.33037469,0.00014299,2]
[421652469,1778027433000,-500.0,0.00014373,2]
[421652470,1778027433000,-305.29,0.00014373,2]
[421652474,1778027433000,-238598.97186866,0.00014397,2]
[421652467,1778027433000,-5086.87729997,0.00014299,2]
[421652462,1778027433000,-9999.99,0.00014237,2]
[421652461,1778027433000,-150.0,0.00014237,2]
[421652463,1778027433000,-150.0,0.00014249,2]
[421652465,1778027433000,-5486.6978,0.00014297,2]
[421652452,1778027433000,-200.0,0.00014135,2]
[421652464,1778027433000,-7548.36381456,0.0001425,2]
[421652468,1778027433000,-500.0,0.00014373,2]
[421652501,1778027438000,-74425.9549,0.000145,2]
[421652507,1778027438000,-500.0,0.00014712,2]
[421652505,1778027438000,-6592.4157027,0.00014666,2]
[421652508,1778027438000,-500.0,0.00014712,2]
[421652506,1778027438000,-176.71592276,0.000147,2]
[421652500,1778027438000,-1469.37,0.00014497,2]
[421652504,1778027438000,-6592.4157027,0.00014607,2]
[421652503,1778027438000,-500.0,0.00014599,2]
[421652502,1778027438000,-6592.4157027,0.00014549,2]